bitfinex/quotes_SOLUSD_20251202
["timestamp","ask_amount","ask_price","bid_price","bid_amount"]
[1764641303702,8.05743014,127.14,127.1,27.53696093]
[1764641304086,8.05743014,127.14,127.1,28.21696093]
[1764641305200,8.05743014,127.14,127.09,7.86827475]
[1764641305201,7.15743014,127.12,127.09,7.86827475]
[1764641305399,0.2,127.14,127.09,15.70570489]
[1764641305607,8.94,127.14,127.1,7.83743014]
[1764641305793,8.94,127.14,127.11,0.68]
[1764641306604,0.2,127.14,127.12,7.15743014]
[1764641306813,0.2,127.14,127.13,7.83743014]
[1764641307302,0.2,127.14,127.13,15.70339411]
[1764641308084,0.7,127.23,127.16,16.308864]
[1764641308296,9.44,127.23,127.19,7.15743014]
[1764641308498,8.74,127.23,127.19,7.15743014]
[1764641308806,9.44,127.23,127.19,7.83743014]
[1764641309007,0.7,127.22,127.18,7.15743014]
[1764641309206,8.74,127.23,127.19,7.86225332]
[1764641309409,9.44,127.23,127.19,8.54225332]
[1764641309588,8.74,127.23,127.2,0.68]
[1764641310184,8.74,127.23,127.2,7.83743014]
[1764641310390,8.74,127.23,127.19,34.67531676]
[1764641310601,9.4,127.23,127.19,35.36531676]
[1764641311405,15.89743014,127.23,127.19,7.86225332]
[1764641311722,16.55743014,127.23,127.19,8.55225332]
[1764641311914,8.74,127.23,127.2,0.69]
[1764641312418,9.4,127.23,127.2,0.69]
[1764641312924,8.74,127.24,127.2,7.84743014]
[1764641313396,8.74,127.24,127.21,8.55101721]
[1764641315009,7.81743014,127.23,127.18,7.84743014]
[1764641315401,7.81743014,127.23,127.19,8.55168478]
[1764641316428,11.83420044,127.23,127.19,8.55168478]
[1764641317116,11.83420044,127.22,127.18,7.86261702]
[1764641317419,0.66,127.22,127.18,8.55261702]
[1764641317623,8.74,127.22,127.19,0.69]
[1764641319024,8.74,127.22,127.19,8.55177964]
[1764641319737,9.4,127.22,127.19,7.86177964]
[1764641320101,9.4,127.22,127.19,8.55177964]
[1764641321120,8.74,127.22,127.19,8.55177964]
[1764641321302,9.4,127.22,127.19,8.55177964]
[1764641321626,8.74,127.22,127.19,8.55177964]
[1764641323820,9.44,127.22,127.19,8.55177964]
[1764641324031,9.44,127.22,127.18,7.86287152]
[1764641324032,11.87420044,127.21,127.18,7.86287152]
[1764641324719,0.7,127.21,127.18,7.86287152]
[1764641325329,0.7,127.21,127.18,8.56287152]
[1764641326129,19.91420044,127.22,127.18,7.86287152]
[1764641326308,8.74,127.22,127.18,8.56287152]
[1764641326508,11.87420044,127.21,127.18,7.86287152]
[1764641327030,0.7,127.2,127.18,7.86287152]
[1764641327210,8.74,127.19,127.18,7.86287152]
[1764641327716,8.74,127.19,127.17,7.86347847]
[1764641329609,0.7,127.18,127.13,0.7]
[1764641329921,0.7,127.18,127.14,0.7]
[1764641330128,8.74,127.19,127.14,11.87420044]
[1764641330327,0.7,127.18,127.14,11.87420044]
[1764641330620,9.44,127.19,127.15,0.7]
[1764641330827,0.7,127.18,127.15,0.7]
[1764641331733,0.7,127.18,127.16,7.86410821]
[1764641333425,19.91420044,127.19,127.17,0.7]
[1764641333426,8.74,127.19,127.17,0.7]
[1764641334335,8.74,127.19,127.16,28.22437873]
[1764641334818,8.74,127.19,127.16,27.52437873]
[1764641335138,8.74,127.19,127.17,0.7]
[1764641335331,8.74,127.19,127.18,7.86287152]
[1764641335937,8.74,127.19,127.18,8.56287152]
[1764641340340,4.7122433,127.23,127.18,28.22005032]
[1764641340552,0.9,127.25,127.2,4.0122433]
[1764641340721,8.72,127.24,127.19,4.7122433]
[1764641340922,4.0122433,127.23,127.19,0.7]
[1764641341124,4.7122433,127.23,127.19,0.7]
[1764641341335,4.0122433,127.21,127.18,27.52005032]
[1764641341520,8.74,127.2,127.18,27.52005032]
[1764641341844,8.74,127.2,127.18,28.22005032]
[1764641342419,20.61971018,127.2,127.18,7.86287152]
[1764641342939,19.91971018,127.2,127.18,7.86287152]
[1764641343329,8.74,127.22,127.19,0.7]
[1764641343528,9.44,127.22,127.19,0.7]
[1764641344116,9.44,127.22,127.18,8.56287152]
[1764641345042,8.74,127.22,127.19,0.7]
[1764641345541,9.44,127.22,127.19,0.7]
[1764641346048,9.44,127.22,127.2,7.86163522]
[1764641346446,8.74,127.22,127.2,7.86163522]
[1764641347130,8.74,127.22,127.2,8.56163522]
[1764641348133,8.74,127.22,127.21,8.56101721]
[1764641348336,8.74,127.22,127.21,7.86101721]
[1764641349445,8.74,127.22,127.2,7.86138667]
[1764641350125,8.74,127.22,127.21,0.7]
[1764641350932,8.74,127.22,127.2,8.56138667]
[1764641352050,8.74,127.22,127.21,8.52101721]
[1764641354649,8.74,127.22,127.2,7.86130086]
[1764641355845,19.91971018,127.22,127.19,7.86204258]
[1764641356029,0.72,127.21,127.19,7.86204258]
[1764641356633,20.63971018,127.22,127.19,7.86204258]
[1764641357656,20.63971018,127.22,127.19,8.52204258]
[1764641358151,19.91971018,127.22,127.19,7.86204258]
[1764641358539,11.17971018,127.2,127.17,8.52348981]
[1764641358760,8.72,127.19,127.18,0.66]
[1764641360034,8.72,127.21,127.18,11.83971018]
[1764641360352,8.72,127.21,127.19,7.86225332]
[1764641360550,8.72,127.21,127.19,8.52225332]
[1764641363154,8.72,127.21,127.18,31.53081322]
[1764641363356,8.72,127.23,127.2,4.67133617]
[1764641363735,8.72,127.23,127.21,0.66]
[1764641365561,8.72,127.23,127.21,8.52045409]
[1764641366062,8.72,127.23,127.22,0.66]
[1764641367244,8.72,127.23,127.22,7.8603993]
[1764641368964,8.72,127.23,127.21,28.17356024]
[1764641369562,9.44,127.23,127.21,7.86101721]
[1764641369738,13.45133617,127.23,127.21,7.86101721]
[1764641370055,12.73133617,127.23,127.2,0.66]
[1764641370356,4.01133617,127.22,127.2,0.66]
[1764641370737,4.69133617,127.22,127.17,7.86348981]
[1764641370955,12.73133617,127.23,127.18,16.308864]
[1764641371148,13.41133617,127.23,127.18,16.998864]
[1764641371468,13.41133617,127.23,127.19,0.69]
[1764641371763,0.68,127.22,127.19,0.69]
[1764641371973,8.72,127.21,127.19,0.69]
[1764641372340,8.72,127.21,127.19,8.55164188]
[1764641372660,8.72,127.21,127.19,7.86164188]
[1764641372869,9.4,127.21,127.19,7.86164188]
[1764641373043,8.72,127.21,127.19,7.86164188]
[1764641376468,8.72,127.21,127.19,8.55164188]
[1764641378751,8.72,127.21,127.19,0.69]
[1764641379056,8.72,127.21,127.19,8.55206368]
[1764641382471,3.22790553,127.2,127.18,7.86278318]
[1764641384473,8.72,127.21,127.18,8.54278318]
[1764641384657,9.38,127.21,127.18,8.54278318]
[1764641384975,8.72,127.21,127.18,7.86278318]
[1764641385276,8.72,127.21,127.19,0.68]
[1764641386374,8.72,127.21,127.2,7.86163522]
[1764641387155,8.72,127.21,127.2,8.54163522]
[1764641391477,8.72,127.21,127.2,11.10954075]
[1764641391673,8.72,127.21,127.2,8.54163522]
[1764641392160,8.72,127.24,127.2,28.19572327]
[1764641392355,8.72,127.24,127.21,0.68]
[1764641392560,0.66,127.23,127.2,28.19572327]
[1764641395773,9.38,127.24,127.21,0.68]
[1764641396065,8.72,127.24,127.21,0.68]
[1764641396776,8.72,127.24,127.22,27.51139757]
[1764641397178,8.72,127.24,127.23,0.68]
[1764641399080,8.72,127.24,127.23,8.53978149]
[1764641399378,0.2,127.25,127.23,8.53978149]
[1764641399570,0.2,127.25,127.24,0.68]
[1764641400285,0.2,127.25,127.23,27.50923523]
[1764641400286,0.86,127.25,127.23,27.50923523]
[1764641400663,0.66,127.24,127.23,7.85978149]
[1764641400980,0.66,127.24,127.21,27.51312986]
[1764641401183,3.42790553,127.25,127.21,28.19312986]
[1764641401589,0.2,127.25,127.22,0.68]
[1764641401776,0.2,127.25,127.22,3.24790553]
[1764641402164,0.2,127.25,127.23,0.68]
[1764641402670,0.2,127.25,127.24,16.308864]
[1764641403063,0.2,127.25,127.24,27.41593331]
[1764641403263,0.2,127.25,127.24,24.84802778]
[1764641405901,0.2,127.25,127.24,27.41593331]
[1764641406104,0.2,127.25,127.24,24.84802778]
[1764641406418,0.2,127.25,127.24,24.16802778]
[1764641408295,0.86,127.25,127.24,7.85916378]
[1764641408597,3.42790553,127.25,127.24,7.85916378]
[1764641408804,0.86,127.25,127.24,7.85916378]
[1764641409315,0.86,127.25,127.23,19.64943003]
[1764641409925,0.2,127.25,127.23,19.64943003]
[1764641410125,0.2,127.25,127.23,20.32943003]
[1764641410300,0.2,127.25,127.23,27.50921152]
[1764641410683,0.2,127.25,127.23,28.18921152]
[1764641410882,0.2,127.25,127.23,27.50921152]
[1764641411081,0.86,127.25,127.23,7.85978149]
[1764641411303,0.2,127.25,127.23,7.85978149]
[1764641411480,0.2,127.25,127.23,8.51978149]
[1764641411687,0.87,127.25,127.23,7.85978149]
[1764641414290,3.43790553,127.25,127.23,7.85978149]
[1764641414488,0.87,127.25,127.23,7.85978149]
[1764641416704,0.2,127.25,127.21,24.16959911]
[1764641416909,0.2,127.25,127.22,0.66]
[1764641417086,0.87,127.25,127.22,0.66]
[1764641419028,9.57,127.25,127.23,7.85978149]
[1764641419194,12.13790553,127.25,127.23,7.85978149]
[1764641420394,9.57,127.25,127.23,7.85978149]
[1764641421608,12.13790553,127.25,127.22,28.17139757]
[1764641423319,8.9,127.25,127.23,8.51917061]
[1764641423519,8.9,127.25,127.23,7.85917061]
[1764641423921,8.9,127.25,127.23,8.51917061]
[1764641424226,9.57,127.25,127.23,7.85917061]
[1764641427239,9.57,127.25,127.22,28.17139757]
[1764641428034,8.9,127.25,127.22,27.51139757]
[1764641428242,8.9,127.25,127.23,0.66]
[1764641428534,8.9,127.25,127.24,16.308864]
[1764641428535,0.2,127.25,127.24,16.308864]
[1764641428738,9.57,127.25,127.22,27.51139757]
[1764641429032,8.9,127.25,127.23,0.66]
[1764641429444,9.57,127.25,127.24,7.85916378]
[1764641429739,8.9,127.25,127.24,7.85916378]
[1764641431240,9.6,127.25,127.23,7.85950605]
[1764641431749,3.26790553,127.24,127.21,24.83961693]
[1764641432626,12.16790553,127.25,127.22,0.67]
[1764641433446,12.16790553,127.25,127.22,8.52987029]
[1764641434018,11.46790553,127.25,127.22,7.85987029]
[1764641434336,12.16790553,127.25,127.22,8.52987029]
[1764641436733,8.9,127.25,127.22,27.51086856]
[1764641436944,8.9,127.25,127.23,0.67]
[1764641437545,8.9,127.25,127.23,8.52927283]
[1764641438851,0.2,127.25,127.24,0.67]
[1764641440178,0.2,127.25,127.24,8.52916378]
[1764641444748,0.2,127.25,127.24,7.85916378]
[1764641445348,0.92,127.25,127.24,7.85916378]
[1764641445942,4.92962305,127.25,127.21,36.6704983]
[1764641446127,4.92962305,127.25,127.22,0.71]
[1764641447544,4.92962305,127.25,127.22,8.5703993]
[1764641447750,8.7,127.24,127.22,8.5703993]
[1764641448252,9.42,127.24,127.22,7.8603993]
[1764641448552,13.42962305,127.24,127.22,7.8603993]
[1764641449342,8.7,127.24,127.22,7.8603993]
[1764641449655,9.42,127.24,127.22,7.8603993]
[1764641450351,0.2,127.25,127.23,0.71]
[1764641450552,8.9,127.25,127.23,0.71]
[1764641452158,8.9,127.25,127.24,7.85916378]
[1764641452479,0.2,127.25,127.24,7.85916378]
[1764641452754,0.2,127.25,127.24,8.56916378]
[1764641458857,0.2,127.25,127.24,10.16916378]
[1764641459061,0.2,127.25,127.24,14.17878683]
[1764641463546,0.2,127.25,127.24,10.16916378]
[1764641463850,0.2,127.25,127.24,14.17878683]
[1764641464436,1e-08,127.25,127.24,22.98873175]
[1764641464644,0.92,127.34,127.27,16.308864]
[1764641464891,6.58,127.34,127.31,4.00962305]
[1764641465360,5.86,127.34,127.3,4.00962305]
[1764641465569,0.72,127.33,127.3,4.71962305]
[1764641466467,0.72,127.33,127.31,7.85484251]
[1764641466665,5.86,127.34,127.31,8.56484251]
[1764641466844,5.86,127.34,127.31,12.57446556]
[1764641470066,6.58,127.34,127.31,12.57446556]
[1764641470439,5.86,127.34,127.31,12.57446556]
[1764641471056,6.58,127.34,127.31,12.57446556]
[1764641471364,1e-08,127.32,127.31,14.07446556]
[1764641472063,1e-08,127.32,127.31,12.57446556]
[1764641473039,1e-08,127.32,127.31,21.38441048]
[1764641473355,1e-08,127.32,127.31,12.57446556]
[1764641476772,1e-08,127.34,127.33,16.308864]
[1764641476974,1e-08,127.35,127.34,16.308864]
[1764641477270,1e-08,127.35,127.34,21.00848705]
[1764641479373,1e-08,127.38,127.37,16.308864]
[1764641479579,1e-08,127.38,127.37,20.31848705]
[1764641479751,1e-08,127.38,127.37,21.00848705]
[1764641481067,1e-08,127.38,127.37,16.998864]
[1764641481267,1e-08,127.38,127.37,28.85962939]
[1764641483246,1e-08,127.39,127.38,0.69]
[1764641483448,1e-08,127.39,127.38,17.51919102]
[1764641484375,1e-08,127.39,127.38,25.369717]
[1764641485197,1e-08,127.39,127.38,11.86014903]
[1764641485373,1e-08,127.39,127.38,12.55014903]
[1764641485975,1e-08,127.39,127.38,11.86014903]
[1764641486470,1e-08,127.39,127.38,12.55014903]
[1764641487773,0.2,127.41,127.38,44.30603196]
[1764641487954,0.2,127.41,127.4,20.31848705]
[1764641488351,0.88,127.41,127.38,31.48646399]
[1764641488773,0.88,127.41,127.38,28.16684094]
[1764641489067,0.88,127.41,127.38,32.17646399]
[1764641490189,0.88,127.41,127.4,7.84929356]
[1764641490355,0.89,127.41,127.4,7.84929356]
[1764641491784,0.89,127.41,127.39,7.84990972]
[1764641493176,0.89,127.41,127.39,31.48430708]
[1764641494382,0.2,127.41,127.4,4.00962305]
[1764641494960,0.89,127.41,127.4,4.00962305]
[1764641495160,0.89,127.41,127.39,31.48430708]
[1764641495460,0.2,127.41,127.39,31.48430708]
[1764641496779,0.2,127.41,127.39,32.15430708]
[1764641498789,0.2,127.41,127.39,31.48430708]
[1764641499292,0.2,127.41,127.4,11.85891661]
[1764641499808,1e-08,127.41,127.4,37.64772553]
[1764641500101,0.2,127.44,127.43,16.308864]
[1764641500264,0.2,127.44,127.43,20.98848705]
[1764641500460,0.2,127.44,127.43,29.75843265]
[1764641500668,0.2,127.45,127.43,38.56837757]
[1764641500890,0.2,127.45,127.44,13.44956865]
[1764641501196,1e-08,127.45,127.44,22.25951357]
[1764641501375,1e-08,127.45,127.44,30.10634345]
[1764641502500,9.62,127.52,127.47,16.308864]
[1764641502715,0.72,127.51,127.49,2.55591373]
[1764641503900,0.72,127.51,127.5,7.84313725]
[1764641504316,0.2,127.52,127.5,11.06905098]
[1764641504524,0.2,127.52,127.51,2.55591373]
[1764641504890,0.92,127.52,127.5,7.84313725]
[1764641505302,0.72,127.51,127.5,7.84313725]
[1764641507812,0.2,127.52,127.5,11.06905098]
[1764641507982,0.2,127.52,127.51,3.22591373]
[1764641508604,8.7,127.56,127.51,3.22591373]
[1764641508807,0.72,127.58,127.55,2.55591373]
[1764641508984,9.4,127.58,127.56,2.55591373]
[1764641509188,9.4,127.58,127.55,2.55591373]
[1764641509506,0.72,127.57,127.54,2.55591373]
[1764641509708,0.72,127.57,127.55,7.84006272]
[1764641509907,0.72,127.57,127.55,10.39597645]
[1764641510214,9.4,127.58,127.55,10.39597645]
[1764641510410,0.72,127.57,127.55,10.39597645]
[1764641512314,0.72,127.57,127.51,10.18]
[1764641512501,3.27591373,127.57,127.52,7.84190715]
[1764641513010,0.72,127.56,127.52,7.84190715]
[1764641513402,0.72,127.56,127.52,27.44667502]
[1764641513600,0.72,127.56,127.52,30.00258875]
[1764641513906,122.72079875,127.6,127.55,7.84006272]
[1764641513907,9.4,127.57,127.55,7.84006272]
[1764641514106,9.4,127.57,127.55,10.39597645]
[1764641514714,8.68,127.58,127.55,30.66613325]
[1764641515103,9.4,127.58,127.55,30.66613325]
[1764641515303,9.4,127.58,127.55,29.99613325]
[1764641515919,0.72,127.59,127.56,2.55591373]
[1764641516223,0.72,127.61,127.56,0.67]
[1764641516404,18.86477773,127.63,127.56,0.67]
[1764641516405,0.72,127.63,127.59,16.308864]
[1764641516739,4.70361246,127.64,127.62,2.55591373]
[1764641516897,4.70361246,127.64,127.63,2.55591373]
[1764641517091,4.70361246,127.64,127.6,0.67]
[1764641517418,4.70361246,127.64,127.62,2.55591373]
[1764641518112,0.72,127.63,127.61,7.83625203]
[1764641518313,0.72,127.63,127.61,10.39216576]
[1764641518620,0.72,127.63,127.61,7.83625203]
[1764641519634,0.72,127.63,127.6,7.83699059]
[1764641519917,0.72,127.63,127.59,7.83744587]
[1764641519918,16.48386593,127.63,127.59,7.83744587]
[1764641520096,9.4,127.63,127.59,7.83744587]
[1764641520298,0.72,127.62,127.59,7.83744587]
[1764641521125,7.08386593,127.61,127.59,7.83744587]
[1764641521626,16.51522592,127.63,127.59,8.50744587]
[1764641521627,0.72,127.63,127.59,8.50744587]
[1764641521928,7.80386593,127.62,127.58,7.83821915]
[1764641522113,0.72,127.62,127.58,14.92208508]
[1764641522419,8.68,127.61,127.58,35.18763297]
[1764641522628,8.68,127.61,127.59,7.08386593]
[1764641522812,8.68,127.61,127.58,35.18763297]
[1764641523013,8.68,127.61,127.58,34.51763297]
[1764641523208,0.72,127.62,127.59,7.75386593]
[1764641523415,0.72,127.62,127.58,28.10376704]
[1764641523617,0.72,127.62,127.59,7.08386593]
[1764641523815,9.4,127.62,127.59,7.75386593]
[1764641524217,9.4,127.62,127.6,7.83699059]
[1764641524432,8.68,127.62,127.6,7.83699059]
[1764641525126,9.4,127.62,127.6,7.83699059]
[1764641525329,0.72,127.61,127.6,7.83699059]
[1764641525533,7.80386593,127.61,127.58,7.83793679]
[1764641525908,0.72,127.6,127.58,7.83793679]
[1764641526433,0.72,127.6,127.57,27.43529173]
[1764641527336,7.80386593,127.6,127.57,7.83883358]
[1764641527725,0.72,127.59,127.57,7.83883358]
[1764641527910,8.68,127.58,127.57,7.83883358]
[1764641528408,9.4,127.58,127.55,27.43959281]
[1764641528608,9.4,127.58,127.55,28.10959281]
[1764641531341,8.68,127.58,127.55,28.11959281]
[1764641532627,0.71,127.57,127.54,24.14937927]
[1764641532935,7.79386593,127.57,127.54,7.84051527]
[1764641533127,7.79386593,127.57,127.53,7.84128661]
[1764641533321,0.71,127.56,127.53,7.84128661]
[1764641533511,0.71,127.56,127.53,8.52128661]
[1764641533933,0.71,127.56,127.53,27.44451722]
[1764641534841,0.71,127.56,127.52,7.84190715]
[1764641535040,0.71,127.56,127.52,29.62667502]
[1764641535720,0.71,127.56,127.52,28.94667502]
[1764641535926,7.79386593,127.56,127.52,28.94667502]
[1764641536126,7.79386593,127.56,127.52,9.34190715]
[1764641536442,0.71,127.55,127.52,9.34190715]
[1764641536618,8.68,127.54,127.52,9.34190715]
[1764641537025,9.39,127.54,127.52,9.34190715]
[1764641537821,8.68,127.54,127.52,9.34190715]
[1764641538032,9.39,127.54,127.52,9.34190715]
[1764641538416,9.39,127.54,127.52,28.94667502]
[1764641538624,9.39,127.54,127.51,25.65114798]
[1764641538842,9.39,127.54,127.51,26.33114798]
[1764641539039,9.39,127.54,127.51,45.93745336]
[1764641539236,8.68,127.55,127.53,7.08386593]
[1764641539549,8.68,127.55,127.54,7.08386593]
[1764641540253,8.68,127.55,127.54,14.92454336]
[1764641540441,8.68,127.55,127.54,7.84067743]
[1764641541040,9.39,127.55,127.54,7.84067743]
[1764641541564,9.39,127.55,127.53,9.34120378]
[1764641541842,0.71,127.54,127.53,9.34120378]
[1764641542831,0.71,127.54,127.52,7.84190715]
[1764641543946,9.39,127.55,127.52,7.84190715]
[1764641544323,0.71,127.54,127.52,7.84190715]
[1764641545352,8.68,127.56,127.53,3.233163]
[1764641545550,3.263163,127.55,127.52,27.44667502]
[1764641546043,0.71,127.54,127.52,27.44667502]
[1764641546245,8.68,127.56,127.52,27.44667502]
[1764641546544,0.71,127.57,127.53,3.233163]
[1764641546733,0.71,127.57,127.52,27.44667502]
[1764641546734,8.68,127.55,127.52,30.67983802]
[1764641547954,8.68,127.55,127.54,2.553163]
[1764641548453,8.68,127.55,127.54,7.77161892]
[1764641548625,23.54264449,127.59,127.54,7.77161892]
[1764641548626,16.45102557,127.59,127.54,7.77161892]
[1764641548826,9.39,127.58,127.54,7.09161892]
[1764641549143,9.39,127.58,127.54,7.84067743]
[1764641549354,9.39,127.58,127.54,8.52067743]
[1764641549528,8.68,127.58,127.54,8.52067743]
[1764641549848,0.71,127.57,127.54,7.84067743]
[1764641550149,0.71,127.57,127.54,27.44237101]
[1764641550325,8.68,127.56,127.54,27.44237101]
[1764641551254,0.71,127.57,127.54,27.44237101]
[1764641551636,8.68,127.56,127.54,27.44237101]
[1764641551857,15.77161892,127.56,127.53,9.34117686]
[1764641552161,0.71,127.55,127.53,9.34117686]
[1764641552451,7.80161892,127.55,127.53,1.5]
[1764641552635,0.71,127.55,127.53,9.34125884]
[1764641552837,15.77161892,127.56,127.53,1.5]
[1764641552838,0.71,127.54,127.53,1.5]
[1764641553142,0.71,127.54,127.51,7.84201567]
[1764641554547,8.68,127.53,127.51,7.84201567]
[1764641558341,8.68,127.53,127.51,7.84201567]
[1764641558857,0.71,127.54,127.51,7.84201567]
[1764641559043,8.68,127.53,127.51,7.84201567]
[1764641560451,0.71,127.54,127.51,7.84201567]
[1764641560660,8.68,127.53,127.51,7.84201567]
[1764641562555,9.36,127.53,127.51,7.84201567]
[1764641562858,0.68,127.52,127.51,7.84201567]
[1764641563039,9.36,127.53,127.51,7.84201567]
[1764641564661,9.36,127.53,127.5,27.45045531]
[1764641564835,9.36,127.53,127.5,28.15045531]
[1764641566340,0.68,127.52,127.5,7.84313725]
[1764641567965,0.68,127.52,127.48,20.31001296]
[1764641568152,0.68,127.52,127.49,7.84375245]
[1764641569453,0.68,127.52,127.49,8.54375245]
[1764641569650,8.68,127.51,127.49,8.54375245]
[1764641571160,83.80994492,127.55,127.49,8.54375245]
[1764641571161,3.99259823,127.56,127.5,4.69259823]
[1764641571368,9.36,127.55,127.5,4.69259823]
[1764641571547,9.36,127.55,127.51,0.7]
[1764641571751,8.68,127.55,127.51,0.7]
[1764641571956,9.36,127.55,127.51,0.7]
[1764641572162,0.68,127.54,127.51,0.7]
[1764641572477,9.36,127.55,127.52,7.84190715]
[1764641572661,0.68,127.54,127.52,7.84190715]
[1764641573170,4.67259823,127.54,127.49,19.60885213]
[1764641573467,3.99259823,127.51,127.48,7.84436774]
[1764641573768,8.68,127.5,127.48,7.84436774]
[1764641573971,8.68,127.49,127.48,7.84436774]
[1764641574350,8.68,127.49,127.47,36.62040075]
[1764641575471,8.68,127.48,127.47,35.92040075]
[1764641576156,8.68,127.48,127.47,36.62040075]
[1764641576366,8.68,127.48,127.47,44.46538388]
[1764641576964,8.68,127.48,127.47,28.15651988]
[1764641577555,8.68,127.5,127.47,32.14911811]
[1764641577758,8.68,127.5,127.48,4.69259823]
[1764641578158,8.68,127.5,127.49,0.7]
[1764641578475,8.68,127.5,127.49,8.54375245]
[1764641579578,20.30146223,127.54,127.49,28.15313357]
[1764641579579,16.308864,127.54,127.49,28.15313357]
[1764641579768,8.68,127.53,127.5,4.69259823]
[1764641579963,8.68,127.53,127.5,3.99259823]
[1764641580281,8.68,127.53,127.51,0.7]
[1764641580570,8.68,127.53,127.51,8.54206513]
[1764641580769,0.68,127.54,127.51,8.54206513]
[1764641581072,9.36,127.57,127.53,3.99259823]
[1764641581475,8.68,127.57,127.54,0.7]
[1764641581848,9.36,127.57,127.54,0.7]
[1764641582071,9.36,127.57,127.54,8.54013853]
[1764641582575,8.68,127.57,127.54,8.54013853]
[1764641582957,9.36,127.57,127.54,8.54013853]
[1764641584371,8.68,127.57,127.54,8.54013853]
[1764641584686,8.68,127.57,127.56,3.99259823]
[1764641584858,8.68,127.57,127.54,27.44183211]
[1764641585056,0.68,127.56,127.54,27.44183211]
[1764641585788,0.68,127.56,127.54,7.84013853]
[1764641586886,0.68,127.56,127.52,27.44630167]
[1764641587090,4.67259823,127.56,127.52,27.44630167]
[1764641587269,4.67259823,127.56,127.52,7.84190715]
[1764641587270,3.99259823,127.55,127.52,7.84190715]
[1764641587582,3.99259823,127.53,127.51,7.84227337]
[1764641587960,0.68,127.52,127.51,7.84227337]
[1764641589057,11.80378632,127.53,127.5,27.45034761]
[1764641589888,0.68,127.53,127.5,27.45034761]
[1764641590191,20.62594789,127.54,127.5,20.30721036]
[1764641590488,11.80378632,127.53,127.49,7.84375245]
[1764641590804,11.80378632,127.53,127.49,28.15313357]
[1764641591585,0.68,127.53,127.5,0.68]
[1764641591774,8.68,127.54,127.5,0.68]
[1764641591982,8.68,127.54,127.52,7.84190715]
[1764641592196,8.68,127.54,127.52,8.52190715]
[1764641592796,8.68,127.54,127.53,0.68]
[1764641593365,8.68,127.57,127.53,11.80378632]
[1764641593666,8.68,127.57,127.54,11.12378632]
[1764641593865,8.68,127.57,127.54,11.80378632]
[1764641594074,8.68,127.57,127.56,7.8394481]
[1764641595570,8.68,127.57,127.55,7.83979625]
[1764641595994,8.68,127.57,127.55,8.51979625]
[1764641596205,91.308864,127.62,127.56,0.68]
[1764641596375,0.69,127.63,127.58,11.12378632]
[1764641596574,8.68,127.62,127.58,11.12378632]
[1764641596775,8.68,127.62,127.58,0.68]
[1764641596971,9.37,127.62,127.58,0.68]
[1764641597679,8.68,127.62,127.58,28.11265032]
[1764641597912,8.68,127.62,127.6,11.12378632]
[1764641598205,8.68,127.62,127.61,7.83637645]
[1764641598408,8.68,127.62,127.61,8.51637645]
[1764641600215,8.68,127.62,127.61,7.83637645]
[1764641601078,5.39361246,127.64,127.61,8.51637645]
[1764641601396,4.70361246,127.64,127.61,0.68]
[1764641601602,8.68,127.63,127.61,0.68]
[1764641602010,9.37,127.63,127.59,19.59252613]
[1764641602184,9.37,127.63,127.59,20.27252613]
[1764641602697,8.68,127.62,127.6,0.68]
[1764641602882,8.68,127.62,127.6,11.80378632]
[1764641603076,4.70361246,127.64,127.61,11.12378632]
[1764641603276,4.70361246,127.64,127.62,27.43265032]